Cogmind - Beta 15 @@@ ROGUE MODE // 2025.08.04 @ 13:20:11 Player: beans Result: Destroyed by B-75 Beast with Heavy Machine Gun Performance ------------- Evolutions (5) 2500 Regions Visited (7) 1400 Robots Destroyed (35) 175 Value Destroyed (1391) 1391 Prototype IDs (19) 380 Alien Tech Used (0) 0 Bonus (680) 680 TOTAL SCORE: 6526 Bonus ------- Registered with UFD 300 Met Optimus in HQ 500 Friendly Fire -120 Cogmind --------- Core Integrity 0/1000 Matter 147/300 Energy 89/100 System Corruption 13% Temperature Cool (12) Movement Core (100) Ox1 Location -5/Factory Parts ------- > --- POWER (2) -------- (None) > --- PROPULSION (6) --- (None) > --- UTILITY (5) ------ Hardened Light Armor Plating > --- WEAPON (4) ------- (None) > --- INVENTORY (5) ---- (None) Peak State ------------ > --- POWER ------------ Neutrino Core > --- PROPULSION ------- Improved Treads Improved Treads > --- UTILITY ---------- Target Analyzer Improved Kinecellerator A0-MCA's Component Scanner > --- WEAPON ----------- KE Penetrator KE Penetrator KE Penetrator KE Penetrator > --- INVENTORY -------- Hardened Light Armor Plating Heavy Riot Gun Flamer Flamer Shrapnel Trap [Rating: 53] Favorites ----------- Power Ion Engine Engine Ion Engine Power Core Fission Core Reactor Micro Antimatter Reactor Propulsion Light Treads Treads Light Treads Hover Unit Gravmag System Utility Scrap Shield Device Advanced Cooling System Storage Compact Matter Pod Processor A0-MCA's Component Scanner Protection Scrap Shield Weapon Battle Cannon Energy Gun Arc Projector Ballistic Gun Light Assault Rifle Ballistic Cannon Battle Cannon Special Weapon Flamer Slashing Weapon Ripper Piercing Weapon Makeshift Spear Build | -11 -10 -10 -7 -7 -5 -5 -5 ------- Run | Yrd Mat Sub Rec Scr Fac Was Fac Slots Evolved 10 | . . . . . 10 . . Power 1 | . . . . . 1 . . Propulsion 4 | . . . . . 4 . . Utility 3 | . . . . . 3 . . Weapon 2 | . . . . . 2 . . Parts Attached 48 | 5 . 12 6 12 9 1 3 Power 5 | 1 . . . 1 1 1 1 Engine 1 | 1 . . . . . . . Core 3 | . . . . 1 1 . 1 Reactor 1 | . . . . . . 1 . Propulsion 8 | 2 . 1 . 3 2 . . Treads 5 | 2 . 1 . . 2 . . Leg . | . . . . . . . . Wheel . | . . . . . . . . Hover 3 | . . . . 3 . . . Flight . | . . . . . . . . Utility 12 | . . 2 3 4 1 . 2 Device 2 | . . . . . 1 . 1 Storage 4 | . . . 3 . . . 1 Processor 3 | . . . . 3 . . . Hackware . | . . . . . . . . Protection 3 | . . 2 . 1 . . . Artifact . | . . . . . . . . Weapon 23 | 2 . 9 3 4 5 . . Energy Gun 4 | . . 1 2 . 1 . . Energy Cannon . | . . . . . . . . Ballistic Gun 9 | 2 . . 1 2 4 . . Ballistic Cannon 4 | . . 3 . 1 . . . Launcher . | . . . . . . . . Special Weapon 4 | . . 3 . 1 . . . Impact Weapon . | . . . . . . . . Slashing Weapon 1 | . . 1 . . . . . Piercing Weapon 1 | . . 1 . . . . . Special Melee Weapon . | . . . . . . . . Unidentified Prototypes . | . . . . . . . . Parts Lost 33 | . . 8 5 3 4 7 6 Power 3 | . . 1 . 1 . . 1 Propulsion 8 | . . 3 . 2 1 2 . Utility 8 | . . 1 3 . . 2 2 Weapon 14 | . . 3 2 . 3 3 3 Highest Loss Streak 7 | . . 3 4 2 4 7 4 To Critical Strikes 1 | . . . . . . 1 . Average Backups 2 | . . 2 3 3 4 4 2 Power . | . . . . . . . . Propulsion . | . . . . . . . . Utility . | . . . . . 1 1 1 Weapon 2 | . . 2 3 2 3 3 . Tool/Special . | . . . . . . . . Unused Backups . | . . . . . . . . Power . | . . . . . . . . Propulsion . | . . . . . . . . Utility . | . . . . . . . . Weapon . | . . . . . . . . Tool/Special . | . . . . . . . . Average Slot Usage (%) 59 | . 71 59 47 74 37 33 16 Engine 4 | . 14 6 . . . . . Core 2 | . . . . 11 2 2 . Treads 13 | . 28 19 . . 3 6 . Hover 4 | . . . . 21 . . . Storage 1 | . . . 18 . . . 1 Processor 3 | . . . . 13 11 6 . Protection 3 | . . 6 . . . . . Energy Gun 2 | . . . 6 11 . . 3 Ballistic Gun 7 | . 28 8 . 3 16 12 . Ballistic Cannon 11 | . . 12 21 12 . . . Special Weapon 1 | . . 1 . . . . 6 Slashing Weapon 2 | . . 4 . . . . . Peak Build Rating 53 | 5 5 15 11 31 53 53 17 Average Rating 12 | 3 5 8 9 24 36 29 10 On Entrance 12 | . 5 5 5 8 24 53 1 Naked Turns 68 | . . . 2 . . 52 14 Heaviest Build 39 | 8 8 25 8 19 39 39 11 Greatest Support 46 | 40 40 40 3 18 46 46 3 Greatest Overweight (x) 11 | . . 7 2 6 11 4 3 Average Overweight (x) . | . . . 1 1 . . 1 Largest Inventory Capacity 5 | 5 5 5 5 5 5 5 5 Average Capacity 5 | 5 5 5 5 5 5 5 5 Most Carried 5 | 3 . 5 5 5 5 5 5 Average Carried 3 | . . 3 4 4 5 5 3 Final Capacity 5 | 5 5 5 5 5 5 5 5 Final Carried 5 | . . 5 4 5 5 5 . Class Distribution -------------------- 73% | Mutant 20% | Derelict-Mutant Dominant Class ---------------- Mutant | -10/Materials Mutant | -10/Subcaves Mutant | -7/Recycling Mutant | -7/Scraptown Scavenger-Gunner | -5/Factory Mutant | -5/Waste Gunner | -5/Factory Resources | -11 -10 -10 -7 -7 -5 -5 -5 ----------- Run | Yrd Mat Sub Rec Scr Fac Was Fac Matter Collected 1580 | 139 . 553 349 256 264 . 19 Remotely . | . . . . . . . . Salvage Created 1837 | 72 . 583 326 364 492 . . Parts 99 | 2 . 43 9 19 26 . . Haulers Intercepted . | . . . . . . . . Recyclers Shooed 2 | . . . 1 . 1 . . Parts Field Recycled . | . . . . . . . . Retrieved Matter . | . . . . . . . . Parts Self-Destructed 18 | . . 18 . . . . . Prevented . | . . . . . . . . Kills | -11 -10 -10 -7 -7 -5 -5 -5 ------- Run | Yrd Mat Sub Rec Scr Fac Was Fac Combat Hostiles Destroyed 29 | . . 13 5 6 5 . . Melee 4 | . . 4 . . . . . Guns 9 | . . . 1 3 5 . . Cannons 16 | . . 9 4 3 . . . Classes Destroyed 10 | 1 . 3 1 3 2 . . Builder 2 | . . . . . 2 . . Recycler 2 | 1 . . 1 . . . . Mechanic 1 | . . . . . 1 . . Grunt 3 | . . . 1 . 2 . . Sentry 8 | . . 1 4 . 3 . . Artisan 1 | . . 1 . . . . . Subdweller 12 | . . 12 . . . . . Federalist 2 | . . . . 2 . . . Explorer 1 | . . . . 1 . . . Scrapper 4 | . . . . 4 . . . Best Kill Streak 6 | 1 . 2 3 2 6 . . Combat Bots Only 4 | . . 2 3 2 4 . . Max Kills in Single Turn 1 | 1 . 1 1 1 1 . . Gunslinging . | . . . . . . . . Exploded . | . . . . . . . . Melee 1 | . . 1 . . . . . Uniques/NPCs Destroyed . | . . . . . . . . Combat | -11 -10 -10 -7 -7 -5 -5 -5 -------- Run | Yrd Mat Sub Rec Scr Fac Was Fac Hostile Shots Fired 284 | . . 70 67 21 59 7 60 Missed 81 | . . 20 22 5 17 . 17 Hits 203 | . . 50 45 16 42 7 43 Melee 13 | . . . . 6 . 7 . Projectile 190 | . . 50 45 10 42 . 43 AOE 2 | . . 2 . . . . . Critical Strikes 10 | . . 3 1 . 2 4 . Damage Taken 3884 | . . 1137 362 189 937 316 943 Core 1246 | . . 139 46 46 181 196 638 Absorbed by Shields . | . . . . . . . . Core Remaining (%) 53 | 100 . . . 7 . . . Volleys Fired 137 | 7 . 65 22 15 19 6 3 Largest 4 | 2 . 2 2 2 3 4 1 Hottest 200 | 40 . 200 110 92 131 132 100 Shots Fired 266 | 8 . 113 35 28 55 24 3 Gun 117 | 8 . 1 13 16 55 24 . Cannon 131 | . . 97 22 12 . . . Launcher . | . . . . . . . . Special 18 | . . 15 . . . . 3 Kinetic 232 | 8 . 97 25 27 51 24 . Thermal 22 | . . 15 . . 4 . 3 Explosive . | . . . . . . . . Electromagnetic 12 | . . 1 10 1 . . . Robot Hit Streak 20 | 6 . 16 20 8 5 5 6 Robot Miss Streak 10 | . . 1 2 2 3 10 . Penetration Max 1 | . . . . . 1 1 . Secondary Targets . | . . . . . . . . Shots Hit Robots 162 | 6 . 72 23 18 30 10 3 Core Hits 70 | 2 . 26 12 9 19 1 1 Critical Kills 2 | . . . . . 2 . . Critical Parts Destroyed 1 | . . . . . 1 . . Critical Strikes 9 | . . 2 . 1 4 1 1 Burn 2 | . . . . . 1 . 1 Destroy 4 | . . . . . 3 1 . Blast 3 | . . 2 . 1 . . . Melee Attacks 40 | . . 40 . . . . . Impact . | . . . . . . . . Slashing 23 | . . 23 . . . . . Piercing 17 | . . 17 . . . . . Sneak Attacks 1 | . . 1 . . . . . Combat Hostiles . | . . . . . . . . Follow-up Attacks 1 | . . 1 . . . . . Damage Inflicted 4317 | 36 . 1938 489 414 894 488 58 Guns 1706 | 36 . . 93 195 894 488 . Cannons 1312 | . . 697 396 219 . . . Explosions . | . . . . . . . . Melee 1120 | . . 1120 . . . . . Ramming 23 | . . . . . . . 23 Kinetic 2892 | 36 . 697 455 408 808 488 . Thermal 242 | . . 121 . . 86 . 35 Explosive . | . . . . . . . . Electromagnetic 40 | . . . 34 6 . . . Impact . | . . . . . . . . Slashing 818 | . . 818 . . . . . Piercing 302 | . . 302 . . . . . Highest Corruption 13 | . . . . . . 13 13 Average Corruption 11 | . . . . . . 6 13 Corruption Purged . | . . . . . . . . Corruption Blocked . | . . . . . . . . Effects 9 | . . . . . . 3 6 Message Errors 2 | . . . . . . 2 . Matter Fused 2 | . . . . . . . 2 Energy Discharges 2 | . . . . . . 1 1 Parts Fused 1 | . . . . . . . 1 Data Loss (minor) 2 | . . . . . . . 2 Overload Shots . | . . . . . . . . Overflow Damage 16 | . . . 13 3 . . . Projectiles 16 | . . . 13 3 . . . Explosions . | . . . . . . . . Melee . | . . . . . . . . Knockbacks 6 | . . 5 . 1 . . . Impact . | . . . . . . . . Kinetic 6 | . . 5 . 1 . . . Secondary . | . . . . . . . . Self-Inflicted Damage 10 | . . . . . . . 10 Shots . | . . . . . . . . Rammed 7 | . . . . . . . 7 Targets Rammed 7 | . . . . . . . 7 Kicked . | . . . . . . . . Crushed . | . . . . . . . . Highest Temperature 310 | . . 310 33 80 101 96 . Average Temperature 47 | . . 129 12 25 54 41 . Received Heat Transfer 1163 | . . 542 135 96 270 . 120 Effects 1 | . . 1 . . . . . Damage (minor) 1 | . . 1 . . . . . Siege Activations . | . . . . . . . . Martial Activations . | . . . . . . . . Shielding Activations . | . . . . . . . . Robots Disrupted . | . . . . . . . . Combat Hostiles . | . . . . . . . . Robots Corrupted . | . . . . . . . . Combat Hostiles . | . . . . . . . . Parts Fried . | . . . . . . . . Impact Corruptions . | . . . . . . . . Robots Melted . | . . . . . . . . Combat Hostiles . | . . . . . . . . Parts Melted 2 | . . . . 2 . . . Heat Transferred 1580 | . . 880 . . 300 . 400 Parts Sabotaged . | . . . . . . . . Parts Stolen 1 | . . . . 1 . . . Parts Stripped . | . . . . . . . . Power Chain Reactions . | . . . . . . . . Alert | -11 -10 -10 -7 -7 -5 -5 -5 ------- Run | Yrd Mat Sub Rec Scr Fac Was Fac Maximum Alert Level . | . . . . . . . . Low Security (%) 100 | 100 100 . 100 . 100 100 100 Level 1 . | . . . . . . . . Level 2 . | . . . . . . . . Level 3 . | . . . . . . . . Level 4 . | . . . . . . . . Level 5 . | . . . . . . . . High Security . | . . . . . . . . Max Security . | . . . . . . . . Peak Influence 169 | 5 . . 46 . 169 45 . Initial 41 | . . . 38 . . 41 . Average 16 | . . . 8 . 84 17 . Influence Increases 441 | 5 . 110 112 . 206 8 . Destroy 0b10 Robot/C 220 | . . 20 100 . 100 . . Destroy 0b10 Robot/NC 30 | 5 . . 10 . 15 . . Destroy Leader 40 | . . . . . 40 . . Disable Machine 15 | . . . . . 15 . . Destroy Structure 16 | . . . 2 . 6 8 . Lose Combat Pursuer 120 | . . 90 . . 30 . . Influence Decreases 441 | 5 . 30 192 . 87 127 . Entered New Map 120 | . . . 42 . . 78 . Time Decay 275 | 5 . 20 140 . 80 30 . Lost Part 46 | . . 10 10 . 7 19 . Squads Dispatched 4 | . . . . . 4 . . Investigation . | . . . . . . . . Extermination . | . . . . . . . . Reinforcement 1 | . . . . . 1 . . Assault . | . . . . . . . . Garrison 3 | . . . . . 3 . . Intercept . | . . . . . . . . Searches Triggered . | . . . . . . . . Construction Impeded 1 | . . . . . 1 . . Haulers Reinforced . | . . . . . . . . Active Scanning Responses . | . . . . . . . . Cargo Convoy Interrupts . | . . . . . . . . Stealth | -11 -10 -10 -7 -7 -5 -5 -5 --------- Run | Yrd Mat Sub Rec Scr Fac Was Fac Distress Signals . | . . . . . . . . Communications Jammed . | . . . . . . . . Distress Signals . | . . . . . . . . Times Spotted 71 | . . 22 4 29 9 6 1 Peak Tracking Total 6 | . . 5 2 5 5 6 1 Tactical Retreats 5 | . . 3 . 1 1 . . Traps | -11 -10 -10 -7 -7 -5 -5 -5 ------- Run | Yrd Mat Sub Rec Scr Fac Was Fac Traps Triggered 3 | . . 2 . . 1 . . Indirectly . | . . . . . . . . Trap Hack Attempts . | . . . . . . . . Triggered . | . . . . . . . . Disarmed . | . . . . . . . . Reprogrammed . | . . . . . . . . Reused . | . . . . . . . . Traps Extracted . | . . . . . . . . Installed 1 | . . . . . . . 1 Triggered . | . . . . . . . . Most Traps Carried 1 | . . 1 1 1 1 1 1 Machines | -11 -10 -10 -7 -7 -5 -5 -5 ---------- Run | Yrd Mat Sub Rec Scr Fac Was Fac Machines Disabled 3 | . . . . 2 1 . . Max in Single Turn 2 | . . . . 2 1 . . Machines Repaired . | . . . . . . . . Machines Dismantled . | . . . . . . . . Machines Sabotaged . | . . . . . . . . Overloaded Fab Kills . | . . . . . . . . Hacking | -11 -10 -10 -7 -7 -5 -5 -5 --------- Run | Yrd Mat Sub Rec Scr Fac Was Fac Machines Accessed 4 | . . 1 2 1 . . . Terminals . | . . . . . . . . Fabricators . | . . . . . . . . Repair Stations . | . . . . . . . . Recycling Units . | . . . . . . . . Scanalyzers . | . . . . . . . . Garrison Access . | . . . . . . . . Total Hacks 31 | . . 1 24 6 . . . Successful 31 | . . 1 24 6 . . . Failed . | . . . . . . . . Catastrophic . | . . . . . . . . Database Lockouts . | . . . . . . . . Manual . | . . . . . . . . Terminals . | . . . . . . . . Fabricators . | . . . . . . . . Repair Stations . | . . . . . . . . Recycling Units . | . . . . . . . . Scanalyzers . | . . . . . . . . Garrison Access . | . . . . . . . . Terminal Hacks 31 | . . 1 24 6 . . . Record 24 | . . . 24 . . . . Robot Analysis 6 | . . . . 6 . . . Proto ID Catalog 1 | . . 1 . . . . . Fabricator Hacks . | . . . . . . . . Repair Station Hacks . | . . . . . . . . Recycling Unit Hacks . | . . . . . . . . Scanalyzer . | . . . . . . . . Garrison Access Hacks . | . . . . . . . . Unauthorized Hacks . | . . . . . . . . Terminals . | . . . . . . . . Fabricators . | . . . . . . . . Repair Stations . | . . . . . . . . Recycling Units . | . . . . . . . . Scanalyzers . | . . . . . . . . Garrison Access . | . . . . . . . . Data Cores Recovered . | . . . . . . . . Used . | . . . . . . . . Hacking Detections . | . . . . . . . . Full Trace Events . | . . . . . . . . Feedback Events . | . . . . . . . . Feedback Blocked . | . . . . . . . . Robot Schematics Acquired . | . . . . . . . . Robots Built . | . . . . . . . . Authchips . | . . . . . . . . Time . | . . . . . . . . Total Robot Build Rating . | . . . . . . . . Part Schematics Acquired . | . . . . . . . . Parts Built . | . . . . . . . . Authchips . | . . . . . . . . Time . | . . . . . . . . Total Part Build Rating . | . . . . . . . . Parts Repaired . | . . . . . . . . Time . | . . . . . . . . Parts Recycled . | . . . . . . . . Recycled Matter . | . . . . . . . . Retrieved Matter . | . . . . . . . . Retrieved Components . | . . . . . . . . Parts Scanalyzed . | . . . . . . . . Part Schematics Acquired . | . . . . . . . . Parts Damaged . | . . . . . . . . Bothacking | -11 -10 -10 -7 -7 -5 -5 -5 ------------ Run | Yrd Mat Sub Rec Scr Fac Was Fac Used RIF Installer . | . . . . . . . . Robots Hacked . | . . . . . . . . Non-combat . | . . . . . . . . Combat . | . . . . . . . . Robot Hacks Applied . | . . . . . . . . Relay Couplers Released . | . . . . . . . . Fabnet Peak Effective % . | . . . . . . . . Robots Rewired . | . . . . . . . . Allies Hacked . | . . . . . . . . Hacks Repelled . | . . . . . . . . Allies | -11 -10 -10 -7 -7 -5 -5 -5 -------- Run | Yrd Mat Sub Rec Scr Fac Was Fac Total Allies . | . . . . . . . . Largest Group . | . . . . . . . . Highest-Rated Group . | . . . . . . . . Highest-Rated Ally . | . . . . . . . . Total Orders . | . . . . . . . . Ally Attacks . | . . . . . . . . Total Damage . | . . . . . . . . Kills . | . . . . . . . . Allies Corrupted . | . . . . . . . . Allies Melted 6 | . . . . 6 . . . Intel | -11 -10 -10 -7 -7 -5 -5 -5 ------- Run | Yrd Mat Sub Rec Scr Fac Was Fac Active Infowar (turns) . | . . . . . . . . Robot Analysis Total 6 | . . . . 6 . . . Derelict Logs Recovered 2 | . . 2 . . . . . Drone Launches . | . . . . . . . . Drone Recoveries . | . . . . . . . . Exploration | -11 -10 -10 -7 -7 -5 -5 -5 ------------- Run | Yrd Mat Sub Rec Scr Fac Was Fac Turns Passed 8746 | 76 267 5446 679 1677 230 125 246 Spaces Moved 3339 | 40 23 1603 408 905 119 116 125 Core 990 | 14 . 196 408 112 43 92 125 Treads 1529 | 26 23 1407 . . 49 24 . Legs . | . . . . . . . . Wheels . | . . . . . . . . Hover 820 | . . . . 793 27 . . Flight . | . . . . . . . . Fastest Speed 50 | 50 160 100 50 60 50 50 50 Average Speed 163 | 121 160 199 143 128 128 74 138 Slowest Speed 600 | 160 160 400 150 350 600 250 200 Overloaded Moves . | . . . . . . . . Propulsion Burnouts . | . . . . . . . . Robots Hopped . | . . . . . . . . Potential Cave-ins 4 | . . . . 3 . . 1 Cave-ins Triggered . | . . . . . . . . Exploration Rate (%) 38 | 4 6 86 61 51 4 90 5 Regions Visited 7 Branch Regions 3 Pre-discovered Areas 1 | . . 1 . . . . . Known Exits Taken 1 | . . . . 1 . . . Unknown Exits Taken 4 | 1 1 1 1 . . . . Scrap Searched 13 | . . 10 . 3 . . . Spaces Dug 8 | . . 8 . . . . . Terrain Destroyed 19 | . . 9 2 . 4 4 . Melee 3 | . . 3 . . . . . Projectile 16 | . . 6 2 . 4 4 . AOE . | . . . . . . . . Terrain Rammed . | . . . . . . . . Walls Destroyed . | . . . . . . . . Machines Disabled . | . . . . . . . . Actions | -11 -10 -10 -7 -7 -5 -5 -5 --------- Run | Yrd Mat Sub Rec Scr Fac Was Fac Total 6318 | 60 253 3674 463 1389 150 136 193 Wait 2678 | 4 231 1926 26 431 3 11 46 Move 3333 | 39 22 1602 407 904 119 115 125 Hop . | . . . . . . . . Pick Up 34 | 5 . 17 1 8 . . 3 Fast Attach 20 | . . 1 4 2 9 4 . Attach 28 | 5 . 5 2 9 . . 7 Detach 2 | . . . . 2 . . . Swap 12 | . . 8 . 4 . . . Drop 13 | . . 9 1 2 . . 1 Fire 137 | 7 . 65 22 15 19 6 3 Melee 38 | . . 38 . . . . . Ram 7 | . . . . . . . 7 Kick . | . . . . . . . . Crush . | . . . . . . . . Escape Stasis . | . . . . . . . . Rewire 12 | . . . . 12 . . . Trap 1 | . . . . . . . 1 Miscellaneous 3 | . . 3 . . . . . Route ------- -11/Scrapyard -10/Materials -10/Subcaves (discovered 3 exits: [*Mat x2] / *Rec) -7/Recycling (discovered 2 exits: *Fac / *Scr) -7/Scraptown (discovered 2 exits: *Fac x2) -5/Factory -5/Waste -5/Factory History --------- Turn | Location | Event 3 | -11/Scrapyard | Discovered new exit (range 16) 77 | -11/Scrapyard | Entered Materials 306 | -10/Materials | Build established: Mutant 328 | -10/Materials | Discovered new exit (range 5) 344 | -10/Materials | Entered Subcaves 345 | -10/Subcaves | Approached by a straggling Scientist 1668 | -10/Subcaves | Shifting Twisted Machinery released Battle Cannon 1687 | -10/Subcaves | Shifting Twisted Machinery released Sub. Power Source 1710 | -10/Subcaves | A swath of the cavern ceiling suddenly collapsed 2201 | -10/Subcaves | Discovered new exit (range 5) 2737 | -10/Subcaves | Disturbed a concealed Subdweller 2844 | -10/Subcaves | Disturbed a concealed Subdweller 2961 | -10/Subcaves | Lost 3 parts (1p1n1w) 3263 | -10/Subcaves | Visited 4L-MR0's lab 3319 | -10/Subcaves | Discovered new exit (range 10) 3721 | -10/Subcaves | A swath of the cavern ceiling suddenly collapsed 3763 | -10/Subcaves | Build established: Derelict-Mutant 4207 | -10/Subcaves | Shifting Twisted Machinery released Scrap Shield 4913 | -10/Subcaves | Learned location of Mines (-10) 5289 | -10/Subcaves | Core integrity fell below 50% 5590 | -10/Subcaves | Build established: Mutant 5786 | -10/Subcaves | Discovered new exit (range 3) 5790 | -10/Subcaves | Entered Recycling 6326 | -7/Recycling | Lost 4 parts (2u2w) 6389 | -7/Recycling | Discovered new exit (range 16) 6404 | -7/Recycling | Scanned before Scraplab entrance 6427 | -7/Recycling | Entered Scraplab 6466 | -7/Recycling | Discovered new exit (range 3) 6469 | -7/Recycling | Entered Scraptown 6798 | -7/Scraptown | Visited UFD Registry 6798 | -7/Scraptown | Registered with UFD as "Datashell" 6886 | -7/Scraptown | Visited A0-MCA Data Center 6893 | -7/Scraptown | Given a B rating by A0-MCA 6895 | -7/Scraptown | Found A0-MCA's Component Scanner 6960 | -7/Scraptown | Visited Science Guys 7013 | -7/Scraptown | Visited Scrap Suit Storage 7031 | -7/Scraptown | Visited Scrapoid Research Area 7073 | -7/Scraptown | Visited Analyses Database 7103 | -7/Scraptown | Visited Research Penetration Think Tank 7139 | -7/Scraptown | Visited LU-1G1's Boring Crew 7184 | -7/Scraptown | Visited Supply Room 7214 | -7/Scraptown | Visited Abandonware Association 7327 | -7/Scraptown | Met Optimus 7327 | -7/Scraptown | Accepted into 0bPrime 7727 | -7/Scraptown | Civil war broke out across Scraptown 7731 | -7/Scraptown | Core integrity fell below 20% 7801 | -7/Scraptown | Identified exit to Factory 7838 | -7/Scraptown | Lost 5 allies 8026 | -7/Scraptown | Lost 3 allies 8106 | -7/Scraptown | Lost 3 allies 8146 | -7/Scraptown | Entered Factory 8146 | -5/Factory | Evolved 10 slots: Power x1, Propulsion x4, Utility x3, Weapon x2 8160 | -5/Factory | Lost 4 allies 8227 | -5/Factory | Lost 4 parts (1n3w) 8376 | -5/Factory | Sucked down chute 8376 | -5/Factory | Entered Waste 8385 | -5/Waste | Spotted C-40 Crusher 8389 | -5/Waste | Spotted C-40 Crusher 8391 | -5/Waste | EMP discharged 8396 | -5/Waste | Spotted C-40 Crusher 8435 | -5/Waste | Crushed by Compactor (1 part destroyed, 1 dropped) 8440 | -5/Waste | Crushed by Compactor (1 part destroyed, 2 dropped) 8443 | -5/Waste | Crushed by Compactor (1 part destroyed, 2 dropped) 8446 | -5/Waste | Crushed by Compactor (1 part destroyed, 1 dropped) 8447 | -5/Waste | Crushed by Compactor (1 part destroyed, 1 dropped) 8450 | -5/Waste | Crushed by Compactor (1 part destroyed) 8451 | -5/Waste | Spotted C-40 Crusher 8451 | -5/Waste | Spotted C-40 Crusher 8468 | -5/Waste | Spotted C-40 Crusher 8481 | -5/Waste | Lost 7 parts (2n2u3w) 8491 | -5/Waste | EMP discharged 8491 | -5/Waste | System corruption reached 10% 8493 | -5/Waste | Discovered new exit (range 10) 8501 | -5/Waste | Entered Factory 8646 | -5/Factory | Spotted B-75 Beast 8709 | -5/Factory | Core integrity fell below 50% 8731 | -5/Factory | Core integrity fell below 20% 8747 | -5/Factory | Destroyed by B-75 Beast with Heavy Machine Gun Last Messages --------------- Knocked back. U-05 Engineer builds a Door. K-01 Serf collects debris. Adv. Cooling System destroyed. K-01 Serf collects debris. Acquired 9 matter. K-01 Serf collects debris. U-05 Engineer builds a Wall. Slammed into U-05 Engineer. K-01 Serf collects debris. Acquired 5 matter. U-05 Engineer knocked back. K-01 Serf collects debris. Knocked back. K-01 Serf collects debris. Mic. Fission Core destroyed. Knocked back. K-01 Serf collects debris. Dropped Shrapnel Trap. Installed Shrapnel Trap. Map ----- +----------------------------------------------------+ | ????????????????????????"? ???????# """" # """ | | ???????????????????????? ???????# """" # """ | | ????????????????????????"" #??????# """" # """ | | ???????????????????????""" ??????# """" # | | ?????????????????????? """ ?????# # | | ????????????????????? "###########+######## | | ?????????????? ??????" """ | | ????????????? ???""" """ | | ?????????????" ?""" """ | | ?????????????" | | ?????????????"" """ """ | | ????????????""" """ """ #####+############+## | | ?????????? """ """ """ # #??????? | | ?????????? # """ #??????? | | ?????????#^ ! # " " " "Y" #??????? | | ????????? + " " " #??????? | | ?????????# == # " " " !#??????? | | ?????????# =! % # " " " #??????? | | ?????????# =! ######= " " " #??????? | | ?????????# #????# " " " #??????? | | ?????????# #????# " " " #??????? | | ?????????# #????# " " " #??????? | | ?????????# ### T## ;#????# " " " ???????? | | ?????????# ????###?#BB##???# ???????? | | ?????????? ????????###BB^##??##############??????? | | ???????????????????###/;;@###????????????????????? | | ???????????????????# % #????????????????????? | | ???????????????????# %%#????????????????????? | | ???????????????????# k #????????????????????? | | ???????????????????# ##???????????????????? | | ???????????????????# ##???????????????????? | | ???????????????????# ;#???????????????????? | | ???????????????????# ##???????????????????? | | ???????????????????# #????????????????????? | | ???????????????????# #????????????????????? | | ???????????????????##########????????????????????? | | ?????????????????????????????????????????????????? | | ?????????????????????????????????????????????????? | | ?????????????????????????????????????????????????? | | ?????????????????????????????????????????????????? | | ?????????????????????????????????????????????????? | | | | | | | | | | | | | | | | | | | +----------------------------------------------------+ Best States ------------- Heat Dissipation 71 Energy Generation 33 Energy Capacity 365 Matter Stores 300 Matter Capacity 600 Sight Range 16 Terrain Scan Density 10 Armor Coverage 800 Evasion (%) 53 Target Analysis 5 Recoil Reduction 2 Kinecelleration 40 Item Schematics ----------------- None Robot Schematics ------------------ None Fabricated ------------ Nothing Repaired ---------- Nothing Alien Tech Used ----------------- None Achievements -------------- None Challenges ------------ None Game ------ Seed BoreVariableNeutralizer Manual? 0 Play Time 00:42:51 Cumulative 78.6 hours Start 2025.08.04 @ 11:28:04 End 2025.08.04 @ 13:20:11 Sessions 1 Manual Loads 0 Difficulty Rogue Special Mode None Game No. 318 Rogue 318 Adventurer 0 Explorer 0 Win Type - Total 0 Types 0/0/0/0/0/0/0/0/0/0 Lore% 31 Gallery% 34 Achievement% 28 Wizard Run 0 Options --------- Layout 2 ASCII 0 Keyboard 0 Movement Mouse Keybinds 0 Fullscreen 2 Font 24/Smallcaps Map View 50x44 Zoom Use 0% Tactical HUD 0 Map Filters NONE Filters NONE Steam 1 RUN: a240a0da-f337-4d09-8275-362e0821c169